fUST/lending_fUST_20241205
["ID","MTS","AMOUNT","RATE_DAILY","PERIOD"]
[344317305,1733340647159,-176.314,0.00025487,10]
[344317307,1733340647168,-504.05093245,0.00025521,2]
[344317309,1733340647178,-1000.0,0.00025521,2]
[344317311,1733340647188,-151.0,0.00025521,7]
[344317313,1733340647199,-171.337316,0.00025521,7]
[344317315,1733340647208,-153.0,0.00025699,2]
[344317317,1733340647218,-153.0,0.00025699,2]
[344317319,1733340647227,-153.0,0.00025699,2]
[344317321,1733340647236,-153.0,0.00025699,2]
[344317323,1733340647246,-153.0,0.00025699,2]
[344317325,1733340647257,-500.0,0.00025753,7]
[344317327,1733340647268,-550.64,0.00025753,7]
[344317329,1733340647278,-500.0,0.00025753,7]
[344317331,1733340647289,-275.43,0.00025753,7]
[344317333,1733340647298,-151.0,0.00025753,7]
[344317335,1733340647308,-500.0,0.00025753,7]
[344317337,1733340647319,-500.0,0.00025753,7]
[344317339,1733340647329,-369.173032,0.00025753,7]
[344317341,1733340647339,-369.173032,0.00025753,7]
[344317343,1733340647349,-151.0,0.00025753,7]
[344317345,1733340647358,-500.0,0.00025753,7]
[344317347,1733340647368,-500.0,0.00025753,7]
[344317349,1733340647378,-326.56,0.00025753,7]
[344317351,1733340647388,-294.34,0.00025753,7]
[344317353,1733340647398,-500.0,0.00025753,7]
[344317355,1733340647408,-500.0,0.00025753,7]
[344317357,1733340647418,-710.1,0.00025753,7]
[344317359,1733340647428,-500.0,0.00025753,7]
[344317361,1733340647438,-582.73,0.00025753,7]
[344317363,1733340647448,-500.0,0.00025753,7]
[344317365,1733340647458,-500.0,0.00025753,7]
[344317367,1733340647469,-500.0,0.00025753,7]
[344317369,1733340647479,-500.0,0.00025753,7]
[344317371,1733340647489,-500.0,0.00025753,7]
[344317373,1733340647499,-500.0,0.00025753,7]
[344317375,1733340647511,-500.0,0.00025753,7]
[344317377,1733340647521,-1276.16,0.00025753,7]
[344317379,1733340647531,-500.0,0.00025753,7]
[344317381,1733340647541,-500.0,0.00025753,7]
[344317383,1733340647550,-559.89,0.00025753,7]
[344317385,1733340647560,-500.0,0.00025753,7]
[344317387,1733340647570,-517.91,0.00025753,7]
[344317391,1733340647592,-500.0,0.00025753,7]
[344317393,1733340647603,-500.0,0.00025753,7]
[344317395,1733340647614,-500.0,0.00025753,7]
[344317397,1733340647624,-151.0,0.00025753,7]
[344317399,1733340647634,-182.152868,0.00025753,7]
[344317401,1733340647645,-500.0,0.00025753,7]
[344317403,1733340647655,-338.837635,0.00025753,7]
[344317405,1733340647666,-500.0,0.00025753,7]
[344317408,1733340647677,-500.0,0.00025753,7]
[344317410,1733340647687,-500.0,0.00025753,7]
[344317412,1733340647697,-500.0,0.00025753,7]
[344317414,1733340647707,-861.64,0.00025753,7]
[344317416,1733340647717,-500.0,0.00025753,7]
[344317418,1733340647728,-500.0,0.00025753,7]
[344317420,1733340647738,-1903.623985,0.00025753,7]
[344317422,1733340647748,-1903.623985,0.00025753,7]
[344317424,1733340647760,-500.0,0.00025753,7]
[344317426,1733340647770,-500.0,0.00025753,7]
[344317428,1733340647780,-956.422392,0.00025753,7]
[344317430,1733340647790,-956.422392,0.00025753,7]
[344317432,1733340647802,-220.613464,0.00025753,7]
[344317434,1733340647813,-500.0,0.00025753,7]
[344317437,1733340647824,-220.613464,0.00025753,7]
[344317439,1733340647835,-500.0,0.00025753,7]
[344317441,1733340647845,-500.0,0.00025753,7]
[344317443,1733340647857,-500.0,0.00025753,7]
[344317445,1733340647867,-7446.92,0.00025753,7]
[344317447,1733340647878,-500.0,0.00025753,7]
[344317449,1733340647888,-490.229861,0.00025753,7]
[344317451,1733340647899,-490.229861,0.00025753,7]
[344317453,1733340647909,-2329.03,0.00025753,7]
[344317455,1733340647920,-861.86,0.00025753,7]
[344317457,1733340647931,-500.0,0.00025753,7]
[344317459,1733340647941,-500.0,0.00025753,7]
[344317461,1733340647951,-500.0,0.00025753,7]
[344317463,1733340647961,-500.0,0.00025753,7]
[344317465,1733340647971,-500.0,0.00025753,7]
[344317467,1733340647981,-500.0,0.00025753,7]
[344317469,1733340647991,-500.0,0.00025753,7]
[344317471,1733340648003,-157.691295,0.00025753,7]
[344317474,1733340648014,-500.0,0.00025753,7]
[344317476,1733340648024,-500.0,0.00025753,7]
[344317478,1733340648034,-500.0,0.00025753,7]
[344317480,1733340648046,-157.691295,0.00025753,7]
[344317482,1733340648056,-1006.16,0.00025753,7]
[344317484,1733340648067,-602.96,0.00025753,7]
[344317486,1733340648078,-151.0,0.00025753,7]
[344317488,1733340648088,-151.0,0.00025753,7]
[344317490,1733340648099,-500.0,0.00025753,7]
[344317492,1733340648110,-500.0,0.00025753,7]
[344317494,1733340648120,-500.0,0.00025753,7]
[344317496,1733340648130,-623.43,0.00025753,7]
[344317498,1733340648141,-764.61,0.00025753,7]
[344317500,1733340648152,-500.0,0.00025753,7]
[344317503,1733340648164,-500.0,0.00025753,7]
[344317505,1733340648174,-500.0,0.00025753,7]
[344317507,1733340648184,-1619.71,0.00025753,7]
[344317509,1733340648194,-373.83,0.00025753,7]
[344317511,1733340648205,-344.6727473,0.00025753,7]
[344317512,1733340648215,-151.0,0.00025753,7]
[344317515,1733340648227,-151.0,0.00025753,7]
[344317517,1733340648238,-633.63,0.00025753,7]
[344317519,1733340648249,-500.0,0.00025753,7]
[344317521,1733340648261,-500.0,0.00025753,7]
[344317523,1733340648271,-1575.54,0.00025753,7]
[344317525,1733340648282,-500.0,0.00025753,7]
[344317527,1733340648293,-184.15,0.00025753,7]
[344317529,1733340648303,-500.0,0.00025753,7]
[344317531,1733340648313,-509.73,0.00025753,7]
[344317533,1733340648324,-500.0,0.00025753,7]
[344317535,1733340648334,-500.0,0.00025753,7]
[344317537,1733340648344,-588.37,0.00025753,7]
[344317539,1733340648355,-564.17,0.00025753,7]
[344317541,1733340648366,-597.11,0.00025753,7]
[344317543,1733340648376,-289.236586,0.00025753,7]
[344317545,1733340648387,-4272.51,0.00025753,7]
[344317547,1733340648397,-500.0,0.00025753,7]
[344317549,1733340648408,-500.0,0.00025753,7]
[344317551,1733340648422,-500.0,0.00025753,7]
[344317554,1733340648433,-561.29,0.00025753,7]
[344317556,1733340648444,-1416.83,0.00025753,7]
[344317558,1733340648454,-233.50213908,0.0002579,2]
[344317560,1733340648464,-151.0,0.000258,7]
[344317562,1733340648475,-151.0,0.000258,7]
[344317564,1733340648486,-26670.3697011,0.000258,2]
[344317566,1733340648496,-1903.623985,0.000258,7]
[344317568,1733340648507,-1903.623985,0.000258,7]
[344317570,1733340648518,-151.0,0.000258,7]
[344317572,1733340648529,-179.052434,0.000258,7]
[344317574,1733340648541,-179.052434,0.000258,7]
[344317576,1733340648552,-1000.0,0.00025821,2]
[344317578,1733340648563,-1660.84681209,0.00026,30]
[344317580,1733340648574,-493.8,0.00026017,3]
[344317582,1733340648585,-151.0,0.00026027,7]
[344317584,1733340648596,-500.0,0.00026027,7]
[344317586,1733340648608,-550.64,0.00026027,7]
[344317588,1733340648619,-500.0,0.00026027,7]
[344317590,1733340648628,-500.0,0.00026027,7]
[344317592,1733340648638,-500.0,0.00026027,7]
[344317594,1733340648649,-500.0,0.00026027,7]
[344317596,1733340648660,-395.21629436,0.00026027,7]
[344317598,1733340648670,-500.0,0.00026027,7]
[344317600,1733340648681,-500.0,0.00026027,7]
[344317602,1733340648692,-710.1,0.00026027,7]
[344317604,1733340648702,-500.0,0.00026027,7]
[344317606,1733340648713,-582.73,0.00026027,7]
[344317609,1733340648724,-500.0,0.00026027,7]
[344317611,1733340648734,-500.0,0.00026027,7]
[344317613,1733340648746,-500.0,0.00026027,7]
[344317615,1733340648758,-500.0,0.00026027,7]
[344317617,1733340648769,-500.0,0.00026027,7]
[344317619,1733340648779,-500.0,0.00026027,7]
[344317621,1733340648790,-1276.16,0.00026027,7]
[344317623,1733340648801,-500.0,0.00026027,7]
[344317625,1733340648812,-500.0,0.00026027,7]
[344317627,1733340648822,-559.89,0.00026027,7]
[344317629,1733340648832,-500.0,0.00026027,7]
[344317631,1733340648843,-517.91,0.00026027,7]
[344317633,1733340648858,-500.0,0.00026027,7]
[344317635,1733340648868,-151.0,0.00026027,7]
[344317637,1733340648878,-500.0,0.00026027,7]
[344317640,1733340648889,-500.0,0.00026027,7]
[344317642,1733340648900,-196.58888578,0.00026027,7]
[344317644,1733340648910,-500.0,0.00026027,7]
[344317646,1733340648921,-500.0,0.00026027,7]
[344317648,1733340648931,-861.64,0.00026027,7]
[344317650,1733340648942,-500.0,0.00026027,7]
[344317652,1733340648952,-500.0,0.00026027,7]
[344317654,1733340648962,-598.94,0.00026027,7]
[344317656,1733340648973,-301.3,0.00026027,7]
[344317658,1733340648983,-956.422392,0.00026027,7]
[344317660,1733340648994,-956.422392,0.00026027,7]
[344317662,1733340649006,-220.613464,0.00026027,7]
[344317664,1733340649017,-500.0,0.00026027,7]
[344317666,1733340649028,-220.613464,0.00026027,7]
[344317668,1733340649039,-500.0,0.00026027,7]
[344317670,1733340649051,-500.0,0.00026027,7]
[344317672,1733340649063,-500.0,0.00026027,7]
[344317674,1733340649074,-7446.92,0.00026027,7]
[344317676,1733340649085,-620.02,0.00026027,7]
[344317678,1733340649096,-490.229861,0.00026027,7]
[344317679,1733340649107,-490.229861,0.00026027,7]
[344317681,1733340649119,-2329.03,0.00026027,7]
[344317683,1733340649130,-861.86,0.00026027,7]
[344317685,1733340649141,-500.0,0.00026027,7]
[344317688,1733340649152,-500.0,0.00026027,7]
[344317690,1733340649163,-500.0,0.00026027,7]
[344317692,1733340649173,-262.26676882,0.00026027,7]
[344317694,1733340649185,-619.76,0.00026027,7]
[344317696,1733340649195,-500.0,0.00026027,7]
[344317698,1733340649206,-157.691295,0.00026027,7]
[344317700,1733340649217,-500.0,0.00026027,7]
[344317702,1733340649228,-419.63569997,0.00026027,7]
[344317704,1733340649239,-523.19,0.00026027,7]
[344317706,1733340649250,-157.691295,0.00026027,7]
[344317708,1733340649265,-1006.16,0.00026027,7]
[344317710,1733340649283,-602.96,0.00026027,7]
[344317712,1733340649294,-151.0,0.00026027,7]
[344317714,1733340649306,-151.0,0.00026027,7]
[344317716,1733340649316,-500.0,0.00026027,7]
[344317718,1733340649327,-500.0,0.00026027,7]
[344317720,1733340649338,-500.0,0.00026027,7]
[344317722,1733340649349,-623.43,0.00026027,7]
[344317724,1733340649359,-764.61,0.00026027,7]
[344317727,1733340649371,-500.0,0.00026027,7]
[344317729,1733340649383,-500.0,0.00026027,7]
[344317731,1733340649394,-500.0,0.00026027,7]
[344317733,1733340649405,-1619.71,0.00026027,7]
[344317735,1733340649416,-151.0,0.00026027,7]
[344317737,1733340649427,-151.0,0.00026027,7]
[344317739,1733340649438,-633.63,0.00026027,7]
[344317740,1733340649449,-500.0,0.00026027,7]
[344317741,1733340649460,-500.0,0.00026027,7]
[344317742,1733340649471,-1575.54,0.00026027,7]
[344317743,1733340649483,-500.0,0.00026027,7]
[344317744,1733340649495,-500.0,0.00026027,7]
[344317745,1733340649514,-509.73,0.00026027,7]
[344317747,1733340649526,-500.0,0.00026027,7]
[344317748,1733340649538,-588.37,0.00026027,7]
[344317750,1733340649549,-597.11,0.00026027,7]
[344317752,1733340649562,-4272.51,0.00026027,7]
[344317755,1733340649574,-500.0,0.00026027,7]
[344317757,1733340649585,-365.54593038,0.00026027,7]
[344317759,1733340649597,-500.0,0.00026027,7]
[344317761,1733340649607,-561.29,0.00026027,7]
[344317763,1733340649619,-1416.83,0.00026027,7]
[344317765,1733340649629,-155.11512456,0.00026034,2]
[344317767,1733340649640,-293.7527107,0.00026164,2]
[344317769,1733340649652,-233.50213908,0.00026201,2]
[344317771,1733340649662,-160.0,0.00026211,3]
[344317773,1733340649673,-1337.96756919,0.00026222,2]
[344317775,1733340649685,-153.0,0.00026242,2]
[344317777,1733340649695,-160.1,0.0002629,4]
[344317779,1733340649707,-500.0,0.00026301,7]
[344317782,1733340649720,-550.64,0.00026301,7]
[344317784,1733340649736,-500.0,0.00026301,7]
[344317786,1733340649748,-500.0,0.00026301,7]
[344317788,1733340649764,-500.0,0.00026301,7]
[344317803,1733340649904,-369.173032,0.00026301,7]
[344317805,1733340649915,-369.173032,0.00026301,7]
[344317807,1733340649925,-500.0,0.00026301,7]
[344317809,1733340649935,-151.0,0.00026301,7]
[344317811,1733340649945,-178.04394,0.00026301,7]
[344317813,1733340649955,-500.0,0.00026301,7]
[344317815,1733340649965,-710.1,0.00026301,7]
[344317817,1733340649976,-500.0,0.00026301,7]
[344317819,1733340649986,-582.73,0.00026301,7]
[344317821,1733340649997,-500.0,0.00026301,7]
[344317823,1733340650011,-500.0,0.00026301,7]
[344317824,1733340650021,-229.06,0.00026301,7]
[344317825,1733340650031,-500.0,0.00026301,7]
[344317826,1733340650041,-500.0,0.00026301,7]
[344317827,1733340650051,-1276.16,0.00026301,7]
[344317828,1733340650061,-250.51917854,0.00026301,7]
[344317829,1733340650071,-384.0,0.00026301,7]
[344317830,1733340650080,-559.89,0.00026301,7]
[344317831,1733340650090,-464.36,0.00026301,7]
[344317832,1733340650099,-517.91,0.00026301,7]
[344317833,1733340650109,-500.0,0.00026301,7]
[344317834,1733340650119,-151.0,0.00026301,7]
[344317835,1733340650129,-500.0,0.00026301,7]
[344317836,1733340650139,-500.0,0.00026301,7]
[344317837,1733340650149,-500.0,0.00026301,7]
[344317838,1733340650159,-580.04,0.00026301,7]
[344317839,1733340650169,-861.64,0.00026301,7]
[344317840,1733340650179,-500.0,0.00026301,7]
[344317841,1733340650189,-500.0,0.00026301,7]
[344317842,1733340650199,-1903.623985,0.00026301,7]
[344317843,1733340650209,-510.9035777,0.00026301,7]
[344317849,1733340650841,-500.0,0.00024657,7]
[344317850,1733340650853,-500.0,0.00024657,7]
[344317851,1733340650866,-500.0,0.00024931,7]
[344317852,1733340650875,-500.0,0.00025205,7]
[344317853,1733340650884,-500.0,0.00025479,7]
[344317854,1733340650896,-477.58453841,0.00025479,7]
[344317855,1733340650908,-22.41546159,0.00025479,7]
[344317856,1733340650917,-213.36,0.00025753,7]
[344317857,1733340650928,-500.0,0.00025753,7]
[344317858,1733340650938,-500.0,0.00026027,7]
[344317859,1733340650949,-1392.7204073,0.00026301,7]
[344317860,1733340650958,-220.613464,0.00026301,7]
[344317861,1733340650968,-500.0,0.00026301,7]
[344317862,1733340650978,-220.613464,0.00026301,7]
[344317863,1733340650987,-500.0,0.00026301,7]
[344317864,1733340650996,-151.0,0.00026301,7]
[344317865,1733340651006,-500.0,0.00026301,7]
[344317866,1733340651015,-242.97187416,0.00026301,7]
[344317868,1733340705343,6017.23420545,0.000261,60]
[344317870,1733340915219,166.310568,0.00013973,2]
[344317874,1733341532147,330.142824,0.00013973,2]
[344317922,1733341832272,-1169.27083333,0.0002,2]
[344317924,1733341832286,-947.50688048,0.00020247,2]
[344317926,1733341832298,-207.73472628,0.00020347,2]
[344317929,1733341832311,-330.142824,0.00020447,2]
[344317931,1733341832322,-300.0,0.00021441,2]
[344317933,1733341832332,-300.0,0.00021441,2]
[344317935,1733341832343,-6441.54213467,0.00021442,2]
[344317939,1733341832379,-355.5,0.00021442,2]
[344317943,1733341832403,-10982.60163594,0.00021442,2]
[344317945,1733341832416,-5473.21924975,0.00021442,2]
[344317996,1733341838034,-231.898439,0.00021138,2]
[344317998,1733341838045,-1200.58528617,0.00021442,2]
[344318195,1733341839985,-446.55169347,0.00021442,2]
[344318198,1733341839996,-93.18974594,0.00022,2]
[344318345,1733341845988,-168.699536,0.00022195,2]
[344318346,1733341845999,-1115.73489373,0.00023212,2]
[344318347,1733341846009,-15000.0,0.000233,2]
[344318348,1733341846019,-420.0,0.00023312,2]
[344318349,1733341846029,-420.0,0.00023585,2]
[344318350,1733341846042,-1115.73489371,0.00024321,2]
[344318351,1733341846053,-155.66809272,0.00024557,2]
[344318352,1733341846062,-325.19579008,0.00024653,2]
[344318353,1733341846072,-306.06158957,0.00024653,2]
[344318354,1733341846082,-300.0,0.00024653,2]
[344318355,1733341846091,-500.0,0.00024653,2]
[344318356,1733341846100,-500.0,0.00024653,2]
[344318357,1733341846111,-500.0,0.00024653,2]
[344318358,1733341846120,-500.0,0.00024653,2]
[344318359,1733341846130,-500.0,0.00024653,2]
[344318360,1733341846140,-500.0,0.00024653,2]
[344318361,1733341846150,-273.1767927,0.00024653,2]
[344318362,1733341846160,-500.0,0.00024653,2]
[344318363,1733341846169,-500.0,0.00024653,2]
[344318364,1733341846179,-500.0,0.00024653,2]
[344318365,1733341846187,-500.0,0.00024653,2]
[344318366,1733341846196,-500.0,0.00024653,2]
[344318367,1733341846205,-500.0,0.00024653,2]
[344318368,1733341846214,-500.0,0.00024653,2]
[344318369,1733341846223,-500.0,0.00024653,2]
[344318370,1733341846236,-500.0,0.00024653,2]
[344318371,1733341846246,-1169.27083333,0.00024657,7]
[344318372,1733341846255,-500.0,0.00024657,7]
[344318373,1733341846265,-500.0,0.00024657,7]
[344318374,1733341846275,-500.0,0.00024657,7]
[344318375,1733341846284,-500.0,0.00024657,7]
[344318376,1733341846300,-500.0,0.00024657,7]
[344318377,1733341846311,-500.0,0.00024657,7]
[344318378,1733341846320,-500.0,0.00024657,7]
[344318379,1733341846330,-500.0,0.00024657,7]
[344318380,1733341846339,-1169.27083333,0.00024657,7]
[344318381,1733341846349,-1169.27083333,0.00024657,7]
[344318382,1733341846358,-1169.27083333,0.00024657,7]
[344318383,1733341846367,-500.02,0.00024657,7]
[344318384,1733341846376,-500.0,0.00024657,7]
[344318385,1733341846383,-500.0,0.00024657,7]
[344318386,1733341846393,-500.0,0.00024657,7]
[344318387,1733341846404,-500.0,0.00024657,7]
[344318388,1733341846413,-500.0,0.00024657,7]
[344318389,1733341846423,-500.0,0.00024657,7]
[344318390,1733341846433,-500.0,0.00024657,7]
[344318391,1733341846443,-1063.46,0.00024657,7]
[344318392,1733341846453,-350.73219758,0.00024657,7]
[344318393,1733341846463,-500.0,0.00024657,7]
[344318394,1733341846473,-500.0,0.00024657,7]
[344318395,1733341846482,-515.62,0.00024657,7]
[344318396,1733341846491,-500.0,0.00024657,7]
[344318397,1733341846501,-500.0,0.00024657,7]
[344318398,1733341846509,-154.0,0.00024657,7]
[344318399,1733341846519,-500.0,0.00024657,7]
[344318400,1733341846529,-500.0,0.00024657,7]
[344318401,1733341846542,-500.0,0.00024657,7]
[344318402,1733341846551,-500.0,0.00024657,7]
[344318403,1733341846560,-500.0,0.00024657,7]
[344318404,1733341846569,-500.0,0.00024657,7]
[344318405,1733341846578,-500.0,0.00024657,7]
[344318406,1733341846587,-500.0,0.00024657,7]
[344318407,1733341846597,-500.0,0.00024657,7]
[344318408,1733341846606,-338.837635,0.00024657,7]
[344318409,1733341846615,-500.0,0.00024657,7]
[344318410,1733341846624,-500.0,0.00024657,7]
[344318411,1733341846633,-500.0,0.00024657,7]
[344318412,1733341846644,-500.0,0.00024657,7]
[344318413,1733341846653,-500.0,0.00024657,7]
[344318414,1733341846663,-500.0,0.00024657,7]
[344318415,1733341846672,-1169.27083333,0.00024657,7]
[344318416,1733341846682,-1169.27083333,0.00024657,7]
[344318417,1733341846691,-1169.27083333,0.00024657,7]
[344318418,1733341846700,-500.0,0.00024657,7]
[344318419,1733341846710,-500.0,0.00024657,7]
[344318420,1733341846719,-500.0,0.00024657,7]
[344318421,1733341846729,-836.24,0.00024657,7]
[344318422,1733341846738,-500.0,0.00024657,7]
[344318423,1733341846747,-564.17,0.00024657,7]
[344318424,1733341846757,-173.16340829,0.00024657,7]
[344318425,1733341846766,-500.0,0.00024657,7]
[344318426,1733341846775,-500.0,0.00024657,7]
[344318427,1733341846784,-500.0,0.00024657,7]
[344318428,1733341846797,-500.0,0.00024657,7]
[344318429,1733341846806,-500.0,0.00024657,7]
[344318430,1733341846815,-500.0,0.00024657,7]
[344318431,1733341846825,-500.0,0.00024657,7]
[344318432,1733341846834,-500.0,0.00024657,7]
[344318433,1733341846845,-500.0,0.00024657,7]
[344318434,1733341846856,-500.0,0.00024657,7]
[344318435,1733341846866,-664.4,0.00024657,7]
[344318436,1733341846876,-500.0,0.00024657,7]
[344318437,1733341846885,-3701.31,0.00024657,7]
[344318438,1733341846894,-500.0,0.00024657,7]
[344318439,1733341846904,-1236.06,0.00024657,7]
[344318440,1733341846915,-500.0,0.00024657,7]
[344318441,1733341846924,-500.0,0.00024657,7]
[344318442,1733341846934,-500.0,0.00024657,7]
[344318443,1733341846943,-502.16863865,0.00024657,7]
[344318444,1733341846953,-500.0,0.00024657,7]
[344318445,1733341846963,-500.0,0.00024657,7]
[344318446,1733341846972,-500.0,0.00024657,7]
[344318447,1733341846981,-500.0,0.00024657,7]
[344318448,1733341846991,-500.0,0.00024657,7]
[344318449,1733341847001,-500.0,0.00024657,7]
[344318450,1733341847010,-298.82620837,0.00024657,7]
[344318451,1733341847020,-747.98,0.00024657,7]
[344318452,1733341847029,-500.0,0.00024657,7]
[344318453,1733341847042,-510.77271646,0.00024657,7]
[344318454,1733341847053,-240.62725188,0.00024657,7]
[344318455,1733341847063,-500.0,0.00024657,7]
[344318456,1733341847072,-500.0,0.00024657,7]
[344318457,1733341847081,-500.0,0.00024657,7]
[344318458,1733341847093,-500.0,0.00024657,7]
[344318459,1733341847103,-500.0,0.00024657,7]
[344318460,1733341847112,-500.0,0.00024657,7]
[344318461,1733341847123,-500.0,0.00024657,7]
[344318462,1733341847132,-500.0,0.00024657,7]
[344318463,1733341847142,-526.51058598,0.00024657,7]
[344318464,1733341847152,-513.43742654,0.00024657,7]
[344318465,1733341847162,-500.0,0.00024657,7]
[344318466,1733341847172,-500.0,0.00024657,7]
[344318467,1733341847181,-500.0,0.00024657,7]
[344318468,1733341847190,-500.0,0.00024657,7]
[344318469,1733341847199,-502.57036943,0.00024657,7]
[344318470,1733341847210,-500.0,0.00024657,7]
[344318471,1733341847220,-500.0,0.00024657,7]
[344318472,1733341847232,-500.0,0.00024657,7]
[344318473,1733341847242,-346.38633783,0.00024657,7]
[344318474,1733341847253,-500.0,0.00024657,7]
[344318475,1733341847263,-925.25,0.00024657,7]
[344318476,1733341847275,-500.0,0.00024657,7]
[344318477,1733341847286,-500.0,0.00024657,7]
[344318478,1733341847300,-500.0,0.00024657,7]
[344318479,1733341847311,-500.0,0.00024657,7]
[344318480,1733341847322,-500.0,0.00024657,7]
[344318481,1733341847331,-519.53,0.00024657,7]
[344318482,1733341847342,-500.0,0.00024657,7]
[344318483,1733341847352,-500.0,0.00024657,7]
[344318484,1733341847361,-500.0,0.00024657,7]
[344318485,1733341847370,-500.0,0.00024657,7]
[344318486,1733341847380,-666.33,0.00024657,7]
[344318487,1733341847390,-500.0,0.00024657,7]
[344318488,1733341847399,-500.0,0.00024657,7]
[344318489,1733341847409,-500.0,0.00024657,7]
[344318490,1733341847418,-528.73591386,0.00024657,7]
[344318491,1733341847427,-500.0,0.00024657,7]
[344318492,1733341847436,-500.0,0.00024657,7]
[344318493,1733341847446,-548.5483375,0.00024657,7]
[344318494,1733341847455,-500.0,0.00024657,7]
[344318495,1733341847464,-500.0,0.00024657,7]
[344318496,1733341847474,-500.0,0.00024657,7]
[344318497,1733341847483,-529.16,0.00024657,7]
[344318498,1733341847492,-541.65,0.00024657,7]
[344318499,1733341847502,-500.0,0.00024657,7]
[344318500,1733341847511,-500.0,0.00024657,7]
[344318501,1733341847521,-500.0,0.00024657,7]
[344318502,1733341847531,-344.6727473,0.00024657,7]
[344318503,1733341847545,-500.0,0.00024657,7]
[344318504,1733341847554,-500.0,0.00024657,7]
[344318505,1733341847564,-575.26,0.00024657,7]
[344318506,1733341847574,-500.0,0.00024657,7]
[344318507,1733341847584,-500.0,0.00024657,7]
[344318508,1733341847594,-500.0,0.00024657,7]
[344318509,1733341847604,-1169.27083333,0.00024657,7]
[344318510,1733341847614,-1169.27083333,0.00024657,7]
[344318511,1733341847624,-500.0,0.00024657,7]
[344318512,1733341847635,-508.55224026,0.00024657,7]
[344318513,1733341847645,-1169.27083333,0.00024657,7]
[344318514,1733341847656,-1549.28,0.00024657,7]
[344318515,1733341847666,-500.0,0.00024657,7]
[344318516,1733341847673,-500.0,0.00024657,7]
[344318517,1733341847680,-500.0,0.00024657,7]
[344318518,1733341847690,-500.0,0.00024657,7]
[344318519,1733341847700,-500.0,0.00024657,7]
[344318520,1733341847710,-506.66,0.00024657,7]
[344318521,1733341847720,-504.15124316,0.00024657,7]
[344318522,1733341847730,-511.14,0.00024657,7]
[344318523,1733341847740,-509.93664783,0.00024657,7]
[344318524,1733341847750,-500.0,0.00024657,7]
[344318525,1733341847760,-500.0,0.00024657,7]
[344318526,1733341847770,-500.0,0.00024657,7]
[344318527,1733341847780,-500.0,0.00024657,7]
[344318528,1733341847793,-1334.87,0.00024657,7]
[344318529,1733341847803,-500.0,0.00024657,7]
[344318530,1733341847813,-500.0,0.00024657,7]
[344318531,1733341847823,-500.0,0.00024657,7]
[344318532,1733341847833,-500.0,0.00024657,7]
[344318533,1733341847843,-500.0,0.00024657,7]
[344318534,1733341847854,-502.83914706,0.00024657,7]
[344318535,1733341847864,-500.0,0.00024657,7]
[344318536,1733341847873,-522.47,0.00024657,7]
[344318537,1733341847882,-500.0,0.00024657,7]
[344318538,1733341847891,-500.0,0.00024657,7]